fUST/lending_fUST_20241019
["ID","MTS","AMOUNT","RATE_DAILY","PERIOD"]
[340452998,1729269116237,-1017.86,0.00021881,2]
[340452999,1729269116248,-862.63,0.00021881,2]
[340453000,1729269116259,-672.27,0.00021881,2]
[340453001,1729269116271,-836.08,0.00021881,2]
[340453002,1729269116281,-758.64,0.00021881,2]
[340453003,1729269116291,-879.34,0.00021881,2]
[340453004,1729269116303,-1322.9,0.00021881,2]
[340453005,1729269116313,-607.82,0.00021881,2]
[340453006,1729269116323,-1219.61,0.00021881,2]
[340453007,1729269116333,-2167.53,0.00021881,2]
[340453008,1729269116343,-1058.56,0.00021881,2]
[340453009,1729269116354,-1079.91,0.00021881,2]
[340453010,1729269116364,-9122.09,0.00021881,2]
[340453011,1729269116374,-718.41,0.00021881,2]
[340453012,1729269116383,-1500.0,0.000219,2]
[340453013,1729269116392,-1500.0,0.000219,2]
[340453014,1729269116402,-1500.0,0.000219,2]
[340453015,1729269116411,-1500.0,0.000219,2]
[340453016,1729269116420,-1500.0,0.000219,2]
[340453017,1729269116430,-1529.44,0.000219,2]
[340453018,1729269116439,-2500.0,0.00021917,2]
[340453019,1729269116449,-5000.0,0.00021917,2]
[340453020,1729269116460,-5000.0,0.00021917,2]
[340453021,1729269116469,-5000.0,0.00021917,2]
[340453022,1729269116479,-5000.0,0.00021917,2]
[340453023,1729269116489,-5000.0,0.00021917,2]
[340453024,1729269116500,-5000.0,0.00021917,2]
[340453025,1729269116510,-5000.0,0.00021917,2]
[340453026,1729269116519,-5000.0,0.00021917,2]
[340453027,1729269116529,-5000.0,0.00021917,2]
[340453028,1729269116539,-5000.0,0.00021917,2]
[340453029,1729269116549,-5000.0,0.00021917,2]
[340453030,1729269116559,-5000.0,0.00021917,2]
[340453031,1729269116568,-5000.0,0.00021917,2]
[340453032,1729269116578,-5000.0,0.00021917,2]
[340453033,1729269116588,-5000.0,0.00021917,2]
[340453034,1729269116598,-468.35,0.00021917,2]
[340453035,1729269116608,-151.0,0.00021918,2]
[340453036,1729269116618,-151.0,0.00021918,2]
[340453037,1729269116628,-151.0,0.00021918,2]
[340453038,1729269116637,-151.0,0.00021918,2]
[340453039,1729269116648,-151.0,0.00021918,2]
[340453040,1729269116658,-274.69259,0.00021918,2]
[340453041,1729269116668,-166.666666,0.00021918,2]
[340453042,1729269116679,-157.77983305,0.0002192,7]
[340453043,1729269116689,-157.77983305,0.0002192,7]
[340453044,1729269116699,-157.77983305,0.0002192,7]
[340453045,1729269116710,-157.77983305,0.0002192,7]
[340453046,1729269116720,-157.77983305,0.0002192,7]
[340453047,1729269116730,-157.77983305,0.0002192,7]
[340453048,1729269116740,-157.77983305,0.0002192,7]
[340453049,1729269116750,-157.77983305,0.0002192,7]
[340453050,1729269116760,-157.77983305,0.0002192,7]
[340453051,1729269116770,-157.77983305,0.0002192,7]
[340453052,1729269116780,-157.77983305,0.0002192,7]
[340453053,1729269116790,-157.77983305,0.0002192,7]
[340453054,1729269116800,-157.77983305,0.0002192,7]
[340453055,1729269116810,-157.77983305,0.0002192,7]
[340453056,1729269116820,-157.77983305,0.0002192,7]
[340453057,1729269116830,-157.77983305,0.0002192,7]
[340453058,1729269116842,-157.77983305,0.0002192,7]
[340453059,1729269116852,-158.27,0.0002192,7]
[340453060,1729269116862,-213.01527462,0.0002192,7]
[340453061,1729269116872,-213.01527462,0.0002192,7]
[340453062,1729269116882,-213.01527462,0.0002192,7]
[340453063,1729269116892,-213.01527462,0.0002192,7]
[340453064,1729269116902,-213.01527462,0.0002192,7]
[340453065,1729269116913,-213.01527462,0.0002192,7]
[340453066,1729269116923,-213.01527462,0.0002192,7]
[340453067,1729269116933,-213.01527462,0.0002192,7]
[340453068,1729269116943,-213.01527462,0.0002192,7]
[340453069,1729269116953,-213.01527462,0.0002192,7]
[340453070,1729269116962,-213.01527462,0.0002192,7]
[340453071,1729269116972,-213.01527462,0.0002192,7]
[340453072,1729269116982,-213.01527462,0.0002192,7]
[340453073,1729269116992,-213.01527462,0.0002192,7]
[340453074,1729269117001,-213.01527462,0.0002192,7]
[340453075,1729269117011,-213.01527462,0.0002192,7]
[340453076,1729269117021,-213.01527462,0.0002192,7]
[340453077,1729269117031,-213.01527462,0.0002192,7]
[340453078,1729269117040,-213.01527462,0.0002192,7]
[340453079,1729269117050,-213.51,0.0002192,7]
[340453080,1729269117062,-1894.32,0.00021977,2]
[340453081,1729269117072,-1187.62,0.00021977,2]
[340453082,1729269117082,-549.5,0.00021977,2]
[340453083,1729269117093,-1942.86,0.00021977,2]
[340453084,1729269117103,-1740.53,0.00021977,2]
[340453085,1729269117113,-996.09,0.00021977,2]
[340453086,1729269117123,-1578.93,0.00021977,2]
[340453087,1729269117134,-997.56,0.00021977,2]
[340453088,1729269117144,-2343.64,0.00021977,2]
[340453089,1729269117154,-961.84,0.00021977,2]
[340453090,1729269117164,-697.69,0.00021977,2]
[340453091,1729269117174,-1320.6,0.00021977,2]
[340453092,1729269117185,-824.0,0.00021977,2]
[340453093,1729269117195,-1257.2,0.00021977,2]
[340453094,1729269117204,-2476.53,0.00021977,2]
[340453095,1729269117215,-1243.63,0.00021977,2]
[340453096,1729269117226,-764.81,0.00021977,2]
[340453097,1729269117238,-7935.75,0.00021977,2]
[340453098,1729269117248,-25511.65804997,0.00022,2]
[340453099,1729269117259,-254.35,0.00022,2]
[340453100,1729269117269,-150.0,0.00022,2]
[340453101,1729269117279,-617939.02726959,0.00022,30]
[340453102,1729269117290,-1507.23976,0.00022,7]
[340453103,1729269117301,-1363.0,0.00022,2]
[340453104,1729269117311,-4438.0,0.00022,2]
[340453105,1729269117322,-10000.0,0.00022,2]
[340453106,1729269117332,-10000.0,0.00022,2]
[340453107,1729269117342,-10000.0,0.00022,2]
[340453108,1729269117353,-13787.0,0.00022,2]
[340453109,1729269117363,-15990.2158312,0.0002201,16]
[340453110,1729269117374,-1010.35861613,0.00022079,2]
[340453111,1729269117384,-933.19429763,0.00022079,2]
[340453112,1729269117395,-1801.24042839,0.00022079,2]
[340453113,1729269117405,-850.72087379,0.00022079,2]
[340453114,1729269117415,-1312.15256817,0.00022079,2]
[340453115,1729269117426,-652.4763843,0.00022079,2]
[340453116,1729269117436,-624.29902152,0.00022079,2]
[340453117,1729269117447,-1089.6975142,0.00022079,2]
[340453118,1729269117458,-1392.9646633,0.00022079,2]
[340453119,1729269117469,-1020.39698552,0.00022079,2]
[340453120,1729269117482,-517.00110038,0.00022079,2]
[340453121,1729269117493,-564.01101192,0.00022079,2]
[340453122,1729269117503,-755.63450057,0.00022079,2]
[340453123,1729269117513,-697.90317825,0.00022079,2]
[340453124,1729269117525,-825.47307718,0.00022079,2]
[340453125,1729269117535,-653.57410278,0.00022079,2]
[340453126,1729269117547,-721.89715232,0.00022079,2]
[340453127,1729269117557,-585.89410547,0.00022079,2]
[340453128,1729269117568,-813.64957048,0.00022079,2]
[340453129,1729269117578,-614.22588991,0.00022079,2]
[340453130,1729269117589,-829.77865411,0.00022079,2]
[340453131,1729269117599,-1003.83194849,0.00022079,2]
[340453132,1729269117609,-997.20077939,0.00022079,2]
[340453133,1729269117619,-797.16278256,0.00022079,2]
[340453134,1729269117629,-1012.65021627,0.00022155,2]
[340453135,1729269117639,-802.52853783,0.00022155,2]
[340453136,1729269117650,-915.39135105,0.00022155,2]
[340453137,1729269117661,-1004.09874176,0.00022155,2]
[340453138,1729269117673,-981.01209998,0.00022155,2]
[340453139,1729269117683,-704.64820271,0.00022155,2]
[340453140,1729269117693,-708.92036605,0.00022155,2]
[340453141,1729269117703,-1845.55,0.00022155,2]
[340453142,1729269117714,-1177.97803454,0.00022155,2]
[340453143,1729269117724,-663.25951412,0.00022155,2]
[340453144,1729269117741,-1017.86388113,0.00022155,2]
[340453145,1729269117751,-862.6512454,0.00022155,2]
[340453146,1729269117762,-672.33139289,0.00022155,2]
[340453147,1729269117773,-836.24806214,0.00022155,2]
[340453148,1729269117783,-758.65361994,0.00022155,2]
[340453149,1729269117795,-879.55243122,0.00022155,2]
[340453150,1729269117805,-1322.90378958,0.00022155,2]
[340453151,1729269117816,-607.90644338,0.00022155,2]
[340453152,1729269117827,-1219.70860876,0.00022155,2]
[340453153,1729269117840,-2167.63004331,0.00022155,2]
[340453154,1729269117851,-1058.78591782,0.00022155,2]
[340453155,1729269117866,-1079.96462384,0.00022155,2]
[340453156,1729269117877,-9122.18604737,0.00022155,2]
[340453157,1729269117888,-718.58529589,0.00022155,2]
[340453158,1729269117898,-1894.34268158,0.00022251,2]
[340453159,1729269117910,-1187.85994425,0.00022251,2]
[340453160,1729269117921,-549.64,0.00022251,2]
[340453161,1729269117932,-1942.90699033,0.00022251,2]
[340453162,1729269117943,-1740.64239303,0.00022251,2]
[340453163,1729269117953,-996.10273545,0.00022251,2]
[340453164,1729269117963,-1579.1674434,0.00022251,2]
[340453165,1729269117974,-997.7113314,0.00022251,2]
[340453166,1729269117992,-2343.86360676,0.00022251,2]
[340453167,1729269118004,-961.88385502,0.00022251,2]
[340453168,1729269118236,-697.81178541,0.00022251,2]
[340453169,1729269118246,-1320.63990067,0.00022251,2]
[340453170,1729269118256,-824.20521677,0.00022251,2]
[340453171,1729269118266,-1257.31753329,0.00022251,2]
[340453172,1729269118276,-2476.65213728,0.00022251,2]
[340453173,1729269118286,-1243.78301668,0.00022251,2]
[340453174,1729269118295,-765.00010675,0.00022251,2]
[340453175,1729269118305,-7935.85428266,0.00022251,2]
[340453176,1729269118314,-917.42,0.000223,31]
[340453177,1729269118323,-917.42,0.000223,31]
[340453178,1729269118333,-917.42,0.000223,31]
[340453179,1729269118342,-917.42,0.000223,31]
[340453180,1729269118352,-917.42,0.000223,31]
[340453181,1729269118362,-917.42,0.000223,31]
[340453182,1729269118371,-917.42,0.000223,31]
[340453183,1729269118381,-917.42,0.000223,31]
[340453184,1729269118390,-917.42,0.000223,31]
[340453185,1729269118399,-917.42,0.000223,31]
[340453186,1729269118408,-917.42,0.000223,31]
[340453187,1729269118418,-917.42,0.000223,31]
[340453188,1729269118428,-917.42,0.000223,31]
[340453189,1729269118437,-917.42,0.000223,31]
[340453190,1729269118447,-917.42,0.000223,31]
[340453191,1729269118456,-917.42,0.000223,31]
[340453192,1729269118466,-917.42,0.000223,31]
[340453193,1729269118475,-917.42,0.000223,31]
[340453194,1729269118488,-917.42,0.000223,31]
[340453195,1729269118498,-917.42,0.000223,31]
[340453196,1729269118508,-917.42,0.000223,31]
[340453197,1729269118518,-917.42,0.000223,31]
[340453198,1729269118527,-917.42,0.000223,31]
[340453199,1729269118537,-917.42,0.000223,31]
[340453200,1729269118546,-2425.76,0.000224,7]
[340453201,1729269118555,-166.666666,0.00022431,2]
[340453202,1729269118564,-2000.0,0.000225,2]
[340453203,1729269118574,-589.42,0.00022535,2]
[340453204,1729269118583,-250.58556602,0.00022791,2]
[340453205,1729269118593,-5000.0,0.00022791,2]
[340453206,1729269118603,-500.0,0.00022858,2]
[340453207,1729269118613,-500.0,0.00022858,2]
[340453208,1729269118622,-166.666666,0.00022944,2]
[340453209,1729269118632,-814.48260078,0.00022976,2]
[340453210,1729269118641,-241.28774652,0.00023,2]
[340453211,1729269118650,-1000.0,0.00023,23]
[340453212,1729269118660,-614.0,0.00023,2]
[340453213,1729269118669,-200.0,0.00023,2]
[340453214,1729269118679,-256.445672,0.00023027,2]
[340453215,1729269118697,-306.0,0.00023178,2]
[340453216,1729269118709,-2500.0,0.00023287,2]
[340453217,1729269118719,-589.42,0.00023357,2]
[340453218,1729269118732,-614.0,0.00023374,2]
[340453219,1729269118741,-166.666666,0.00023456,2]
[340453220,1729269118753,-1613.0,0.00023551,2]
[340453221,1729269118763,-614.0,0.00023648,2]
[340453222,1729269118773,-917.42,0.000237,31]
[340453223,1729269118783,-917.42,0.000237,31]
[340453224,1729269118792,-917.42,0.000237,31]
[340453225,1729269118802,-917.42,0.000237,31]
[340453226,1729269118812,-917.42,0.000237,31]
[340453227,1729269118822,-917.42,0.000237,31]
[340453228,1729269118833,-917.42,0.000237,31]
[340453229,1729269118844,-917.42,0.000237,31]
[340453230,1729269118854,-917.42,0.000237,31]
[340453231,1729269118864,-917.42,0.000237,31]
[340453232,1729269118875,-917.42,0.000237,31]
[340453233,1729269118884,-917.42,0.000237,31]
[340453234,1729269118894,-917.42,0.000237,31]
[340453235,1729269118903,-917.42,0.000237,31]
[340453236,1729269118914,-917.42,0.000237,31]
[340453237,1729269118924,-917.42,0.000237,31]
[340453238,1729269118934,-917.42,0.000237,31]
[340453239,1729269118944,-917.42,0.000237,31]
[340453240,1729269118957,-917.42,0.000237,31]
[340453241,1729269118968,-917.42,0.000237,31]
[340453242,1729269118978,-917.42,0.000237,31]
[340453243,1729269118989,-917.42,0.000237,31]
[340453244,1729269119002,-917.42,0.000237,31]
[340453245,1729269119014,-917.42,0.000237,31]
[340453246,1729269119024,-189.8633249,0.00023836,2]
[340453247,1729269119037,-500.0,0.00023894,2]
[340453248,1729269119047,-614.0,0.00023922,2]
[340453249,1729269119059,-166.666666,0.00023969,2]
[340453250,1729269119070,-52746.23253472,0.00024,2]
[340453251,1729269119083,-201.0,0.00024,2]
[340453252,1729269119093,-150.999999,0.00024,2]
[340453253,1729269119104,-589.42,0.00024179,2]
[340453254,1729269119114,-614.0,0.00024196,2]
[340453255,1729269119123,-5000.0,0.00024219,2]
[340453256,1729269119134,-639.30661636,0.00024228,2]
[340453257,1729269119144,-500.0,0.00024228,2]
[340453258,1729269119155,-614.0,0.00024255,2]
[340453259,1729269119165,-614.0,0.0002447,2]
[340453260,1729269119174,-166.666666,0.00024482,2]
[340453261,1729269119184,-1303.59947432,0.000245,2]
[340453262,1729269119194,-2500.0,0.00024657,2]
[340453263,1729269119204,-1710.23,0.00024657,2]
[340453264,1729269119214,-719.09,0.00024657,3]
[340453265,1729269119224,-719.09,0.00024657,3]
[340453266,1729269119236,-719.09,0.00024657,3]
[340453267,1729269119247,-719.09,0.00024657,3]
[340453268,1729269119257,-719.09,0.00024657,3]
[340453269,1729269119267,-719.09,0.00024657,3]
[340453270,1729269119277,-719.09,0.00024657,3]
[340453271,1729269119288,-719.09,0.00024657,3]
[340453272,1729269119298,-719.09,0.00024657,3]
[340453273,1729269119308,-719.09,0.00024657,3]
[340453274,1729269119318,-719.09,0.00024657,3]
[340453275,1729269119328,-719.09,0.00024657,3]
[340453276,1729269119338,-719.09,0.00024657,3]
[340453277,1729269119348,-719.09,0.00024657,3]
[340453278,1729269119358,-719.09,0.00024657,3]
[340453279,1729269119368,-719.09,0.00024657,3]
[340453280,1729269119378,-719.09,0.00024657,3]
[340453281,1729269119388,-719.09,0.00024657,3]
[340453282,1729269119398,-719.09,0.00024657,3]
[340453283,1729269119407,-719.09,0.00024657,3]
[340453284,1729269119417,-719.09,0.00024657,3]
[340453285,1729269119427,-719.09,0.00024657,3]
[340453286,1729269119437,-719.09,0.00024657,3]
[340453287,1729269119447,-719.23592402,0.00024657,3]
[340453288,1729269119457,-200.0,0.00024658,2]
[340453289,1729269119467,-380.0,0.00024658,2]
[340453290,1729269119477,-660.0,0.00024658,2]
[340453291,1729269119488,-200.0,0.00024658,15]
[340453292,1729269119498,-500.0,0.00024658,2]
[340453293,1729269119509,-500.0,0.00024658,2]
[340453294,1729269119519,-500.0,0.00024658,2]
[340453295,1729269119529,-500.0,0.00024658,2]
[340453296,1729269119539,-500.0,0.00024658,2]
[340453297,1729269119549,-500.0,0.00024658,2]
[340453298,1729269119559,-500.0,0.00024658,2]
[340453299,1729269119568,-500.0,0.00024658,2]
[340453300,1729269119578,-500.0,0.00024658,2]
[340453301,1729269119588,-512.6103912,0.00024658,2]
[340453302,1729269119598,-500.0,0.00024658,2]
[340453303,1729269119608,-500.0,0.00024658,2]
[340453304,1729269119618,-500.0,0.00024658,2]
[340453305,1729269119627,-500.0,0.00024658,2]
[340453306,1729269119638,-500.0,0.00024658,2]
[340453307,1729269119648,-500.0,0.00024658,2]
[340453308,1729269119657,-500.0,0.00024658,2]
[340453309,1729269119666,-500.0,0.00024658,2]
[340453310,1729269119676,-500.0,0.00024658,2]
[340453311,1729269119686,-150.0,0.00024673,2]
[340453312,1729269119696,-76124.61,0.000247,14]
[340453313,1729269119706,-526.22,0.000247,14]
[340453314,1729269119716,-8305.19,0.000247,14]
[340453315,1729269119725,-7328.38,0.000247,14]
[340453316,1729269119736,-69247.67618377,0.00024839,2]
[340453317,1729269119747,-280.4,0.00025,31]
[340453318,1729269119757,-1000.5,0.00025,31]
[340453319,1729269119768,-1000.5,0.00025,31]
[340453320,1729269119778,-1000.5,0.00025,31]
[340453321,1729269119788,-1001.7,0.00025,31]
[340453322,1729269119798,-1000.5,0.00025,31]
[340453323,1729269119809,-1000.5,0.00025,31]
[340453324,1729269119819,-117637.67002582,0.00025,2]
[340453325,1729269119829,-245913.04595984,0.00025,2]
[340453326,1729269119841,-7475.70731281,0.00025,2]
[340453327,1729269119851,-1000.0,0.00025,5]
[340453328,1729269119861,-150.0,0.00025,2]
[340453329,1729269119872,-1036.27160963,0.00025,2]
[340453330,1729269119883,-164.86480142,0.00025,2]
[340453331,1729269119893,-202.65553454,0.00025,2]
[340453332,1729269119904,-507.96857949,0.00025,2]
[340453333,1729269119915,-345.36407852,0.00025,2]
[340453334,1729269119924,-824.61953793,0.00025,2]
[340453335,1729269119934,-2000.0,0.00025,2]
[340453336,1729269119943,-300.0,0.00025,2]
[340453337,1729269119953,-300.0,0.00025,2]
[340453338,1729269119963,-300.0,0.00025,2]
[340453339,1729269119972,-300.0,0.00025,2]
[340453340,1729269119983,-300.0,0.00025,2]
[340453341,1729269119993,-300.0,0.00025,2]
[340453342,1729269120002,-300.0,0.00025,2]
[340453343,1729269120012,-300.0,0.00025,2]
[340453344,1729269120021,-300.0,0.00025,2]
[340453345,1729269120031,-300.0,0.00025,2]
[340453346,1729269120041,-300.0,0.00025,2]
[340453347,1729269120051,-300.0,0.00025,2]
[340453348,1729269120061,-300.0,0.00025,2]
[340453349,1729269120072,-300.0,0.00025,2]
[340453350,1729269120081,-7756.32493524,0.00025,2]
[340453351,1729269120091,-56718.36945168,0.00025,2]
[340453352,1729269120100,-10364.0,0.00025,2]
[340453353,1729269120110,-456594.56343423,0.00025,2]
[340453354,1729269120120,-255.5,0.00025,2]
[340453355,1729269120129,-255.5,0.00025,2]
[340453356,1729269120139,-448.0,0.00025,2]
[340453357,1729269120150,-500.0,0.00025,15]
[340453358,1729269120160,-1000.0,0.00025,25]
[340453359,1729269120169,-303.05757821,0.00025,2]
[340453360,1729269120180,-303.05757821,0.00025,2]
[340453361,1729269120190,-589.42,0.00025001,2]
[340453362,1729269120200,-210.5530868,0.00025002,2]
[340453363,1729269120209,-210.5530868,0.00025002,2]
[340453364,1729269120220,-210.5530868,0.00025002,2]
[340453365,1729269120232,-315261.17941724,0.0002509,2]
[340453366,1729269120242,-917.42,0.000252,31]
[340453367,1729269120252,-917.42,0.000252,31]
[340453368,1729269120262,-917.42,0.000252,31]
[340453369,1729269120272,-917.42,0.000252,31]
[340453370,1729269120284,-917.42,0.000252,31]
[340453371,1729269120296,-917.42,0.000252,31]
[340453372,1729269120309,-917.42,0.000252,31]
[340453373,1729269120321,-917.42,0.000252,31]
[340453374,1729269120330,-917.42,0.000252,31]
[340453375,1729269120341,-917.42,0.000252,31]
[340453376,1729269120351,-917.42,0.000252,31]
[340453377,1729269120360,-917.42,0.000252,31]
[340453378,1729269120369,-917.42,0.000252,31]
[340453379,1729269120380,-917.42,0.000252,31]
[340453380,1729269120390,-917.42,0.000252,31]
[340453381,1729269120400,-917.42,0.000252,31]
[340453382,1729269120410,-917.42,0.000252,31]
[340453383,1729269120421,-917.42,0.000252,31]
[340453384,1729269120431,-917.42,0.000252,31]
[340453385,1729269120442,-917.42,0.000252,31]
[340453386,1729269120452,-917.42,0.000252,31]
[340453387,1729269120463,-917.42,0.000252,31]
[340453388,1729269120473,-917.42,0.000252,31]
[340453389,1729269120484,-917.42,0.000252,31]
[340453390,1729269120494,-814.48260078,0.00025214,2]
[340453391,1729269120506,-250.0,0.00025221,2]
[340453392,1729269120517,-614.0,0.00025225,2]
[340453393,1729269120526,-303.05757821,0.0002525,2]
[340453394,1729269120537,-303.05757821,0.0002525,2]
[340453395,1729269120548,-208.0,0.000253,10]
[340453396,1729269120560,-201.0,0.00025358,2]
[340453397,1729269120570,-614.0,0.00025468,2]
[340453398,1729269120582,-400.0,0.00025469,3]
[340453399,1729269120594,-303.05757821,0.000255,2]
[340453400,1729269120604,-303.05757821,0.000255,2]
[340453401,1729269120615,-250.0,0.00025521,2]
[340453402,1729269120626,-500.0,0.00025598,2]
[340453403,1729269120635,-526.22,0.000256,14]
[340453404,1729269120646,-8305.19,0.000256,14]
[340453405,1729269120656,-1710.23,0.00025616,3]
[340453406,1729269120776,-5000.0,0.00025648,7]
[340453407,1729269120786,-303.05757821,0.0002575,2]
[340453408,1729269120797,-303.05757821,0.0002575,2]
[340453409,1729269120806,-350.0,0.00025768,2]
[340453410,1729269120816,-2258.0,0.00025775,2]
[340453411,1729269120825,-589.42,0.00025823,2]
[340453412,1729269120838,-153.0,0.00025833,2]
[340453413,1729269120848,-210.5530868,0.00025833,2]
[340453414,1729269120857,-828.7493606,0.00025833,2]
[340453415,1729269120867,-414.6078501,0.00025833,2]
[340453416,1729269120877,-210.5530868,0.00025833,2]
[340453417,1729269120886,-210.5530868,0.00025833,2]
[340453418,1729269120896,-414.6078501,0.00025833,2]
[340453419,1729269120905,-418.7011735,0.00025833,2]
[340453420,1729269120915,-221.4540055,0.00025833,2]
[340453421,1729269120926,-1007.75753,0.00026,21]
[340453422,1729269120935,-526.23076482,0.00026,2]
[340453423,1729269120944,-76124.61,0.00026,14]
[340453424,1729269120953,-7328.38,0.00026,14]
[340453425,1729269120962,-303.05757821,0.00026,2]
[340453426,1729269120972,-303.05757821,0.00026,2]
[340453427,1729269120983,-2500.0,0.00026027,2]
[340453428,1729269120995,-398.30907123,0.00026068,2]
[340453429,1729269121004,-614.0,0.00026195,2]
[340453430,1729269121013,-614.0,0.00026195,2]
[340453431,1729269121023,-454.58636732,0.0002625,4]
[340453432,1729269121032,-454.58636732,0.0002625,4]
[340453433,1729269121042,-450.0,0.00026316,2]
[340453434,1729269121052,-335.233947,0.00026388,2]
[340453435,1729269121061,-8305.19,0.000264,14]
[340453436,1729269121070,-7458.94652043,0.0002649,2]
[340453437,1729269121079,-454.58636732,0.000265,4]
[340453438,1729269121088,-454.58636732,0.000265,4]
[340453439,1729269121098,-1710.23,0.00026575,4]
[340453440,1729269121107,-526.22,0.000266,14]
[340453441,1729269121116,-917.42,0.000266,31]
[340453442,1729269121125,-917.42,0.000266,31]
[340453443,1729269121134,-917.42,0.000266,31]
[340453444,1729269121143,-917.42,0.000266,31]
[340453445,1729269121153,-917.42,0.000266,31]
[340453446,1729269121162,-917.42,0.000266,31]
[340453447,1729269121171,-917.42,0.000266,31]
[340453448,1729269121180,-917.42,0.000266,31]
[340453449,1729269121190,-917.42,0.000266,31]
[340453450,1729269121200,-917.42,0.000266,31]
[340453451,1729269121209,-917.42,0.000266,31]
[340453452,1729269121218,-917.42,0.000266,31]
[340453453,1729269121227,-402.72726817,0.000266,2]
[340453454,1729269121237,-500.0,0.00026633,2]
[340453455,1729269121246,-589.42,0.00026644,2]
[340453456,1729269121255,-302.1038448,0.00026655,2]
[340453457,1729269121264,-302.1038448,0.00026655,2]
[340453458,1729269121274,-302.1038448,0.00026655,2]
[340453459,1729269121284,-302.1038448,0.00026655,2]
[340453460,1729269121293,-302.1038448,0.00026655,2]
[340453461,1729269121302,-302.1038448,0.00026655,2]
[340453462,1729269121311,-302.1038448,0.00026655,2]
[340453463,1729269121320,-302.1038448,0.00026655,2]
[340453464,1729269121329,-250.0,0.00026676,2]
[340453465,1729269121338,-306.0,0.00026712,2]
[340453466,1729269121347,-454.58636732,0.0002675,4]
[340453467,1729269121356,-454.58636732,0.0002675,4]
[340453468,1729269121365,-1051.3641353,0.00026859,2]
[340453469,1729269121375,-550.0,0.00026864,2]
[340453470,1729269121384,-614.0,0.00026923,2]
[340453471,1729269121394,-500.0,0.00026968,2]
[340453472,1729269121403,-500.0,0.00027,3]
[340453473,1729269121413,-357711.63862604,0.00027,2]
[340453474,1729269121423,-2000.0,0.00027,2]
[340453475,1729269121432,-8000.0,0.00027,30]
[340453476,1729269121442,-1000.0,0.00027,27]
[340453477,1729269121452,-158.0,0.00027,7]
[340453478,1729269121461,-454.58636732,0.00027,4]
[340453479,1729269121471,-454.58636732,0.00027,4]
[340453480,1729269121481,-153.0,0.00027014,2]
[340453481,1729269121492,-160.0,0.00027054,5]
[340453482,1729269121503,-5000.0,0.00027076,7]
[340453483,1729269121512,-7328.38,0.000271,14]
[340453484,1729269121521,-614.0,0.00027166,2]
[340453485,1729269121531,-8305.19,0.000272,14]
[340453486,1729269121541,-454.58636732,0.0002725,4]
[340453487,1729269121551,-454.58636732,0.0002725,4]
[340453488,1729269121560,-842.37075078,0.000273,30]
[340453489,1729269121570,-500.0,0.000273,30]
[340453490,1729269121579,-500.0,0.000273,30]
[340453491,1729269121589,-500.0,0.000273,30]
[340453492,1729269121598,-1700.0,0.000273,30]
[340453493,1729269121608,-500.0,0.000273,30]
[340453494,1729269121617,-500.0,0.000273,30]
[340453495,1729269121627,-1700.0,0.000273,30]
[340453496,1729269121636,-500.0,0.000273,30]
[340453497,1729269121646,-500.0,0.000273,30]